fUST/lending_fUST_20240509
["ID","MTS","AMOUNT","RATE_DAILY","PERIOD"]
[326704025,1715268641774,-500.0,0.00057999,120]
[326704027,1715268641787,-500.0,0.00057999,120]
[326704029,1715268641807,-500.0,0.00057999,120]
[326704030,1715268641817,-500.0,0.00057999,120]
[326704032,1715268641831,-500.0,0.00057999,120]
[326704034,1715268641841,-500.0,0.00057999,120]
[326704035,1715268641852,-500.0,0.00057999,120]
[326704036,1715268641863,-500.0,0.00057999,120]
[326704037,1715268641873,-500.0,0.00057999,120]
[326704038,1715268641883,-500.0,0.00057999,120]
[326704039,1715268641893,-500.0,0.00057999,120]
[326704040,1715268642011,-500.0,0.00057999,120]
[326704041,1715268642022,-585.29329411,0.00057999,120]
[326704042,1715268642032,-500.0,0.00057999,120]
[326704043,1715268642058,-5554.62105816,0.00058,61]
[326704044,1715268642072,-10434.67529607,0.00058,61]
[326704045,1715268642087,-632.26846549,0.00058,61]
[326704046,1715268642097,-54830.47262492,0.00058,120]
[326704047,1715268642109,-1980.77828988,0.00058,120]
[326704048,1715268642122,-10269.65206758,0.00058,120]
[326704049,1715268642132,-195.71802094,0.00058393,2]
[326704050,1715268642142,-151.0,0.00058712,120]
[326704051,1715268642152,-8777.90271002,0.0006,120]
[326704052,1715268642162,-151.0,0.00060082,120]
[326704053,1715268642174,-151.0,0.00061452,120]
[326704054,1715268642184,-165.248838,0.00062466,2]
[326704055,1715268642193,-151.0,0.00062822,120]
[326704056,1715268642203,-151.0,0.00064192,120]
[326704057,1715268642214,-195.71802091,0.00064318,2]
[326704058,1715268642224,-151.0,0.00065562,120]
[326704059,1715268642234,-481.41,0.00066,120]
[326704060,1715268642244,-151.0,0.00066932,120]
[326704061,1715268642257,-167.273948,0.00067789,2]
[326704062,1715268642267,-151.0,0.00068301,120]
[326704063,1715268642276,-179.6,0.00068872,120]
[326704064,1715268642286,-154.70605849,0.00069,7]
[326704065,1715268642297,-3000.0,0.00069,120]
[326704066,1715268642307,-3000.0,0.0006901,120]
[326704067,1715268642316,-3000.0,0.0006902,120]
[326704068,1715268642327,-3000.0,0.0006903,120]
[326704069,1715268642336,-3814.32029,0.0006904,120]
[326704070,1715268642348,-151.0,0.00069671,120]
[326704071,1715268642358,-195.71802091,0.00070242,2]
[326704072,1715268642368,-166.666666,0.00070986,120]
[326704073,1715268642377,-151.0,0.00071041,120]
[326704074,1715268642387,-165.248838,0.00071781,120]
[326704075,1715268642397,-151.0,0.00071808,120]
[326704076,1715268642407,-151.0,0.00072411,120]
[326704077,1715268642417,-151.0,0.00073781,120]
[326704078,1715268642432,-151.0,0.00075151,120]
[326704079,1715268642443,-195.71802091,0.00076167,2]
[326704080,1715268642452,-151.0,0.00076521,120]
[326704081,1715268642464,-1057.0,0.00077,120]
[326704082,1715268642474,-151.0,0.0007789,120]
[326704083,1715268642483,-151.0,0.0007926,120]
[326704084,1715268642493,-166.0,0.0008,120]
[326704085,1715268642510,-246.0,0.0008,30]
[326704086,1715268642520,-151.0,0.0008063,120]
[326704087,1715268642531,-165.248838,0.00081096,120]
[326704088,1715268642543,-8287.61975557,0.0008124,120]
[326704108,1715268646012,-400.02877114,0.00025,2]
[326704109,1715268646022,-148.83283949,0.00035,4]
[326704112,1715268646033,-1183.54850932,0.00035,4]
[326704113,1715268646043,-620.77491368,0.0008124,120]
[326704115,1715268646055,-3012.47132687,0.0008124,120]
[326704117,1715268646066,-2974.84531507,0.0008124,120]
[326704118,1715268650434,-150.0,0.00024621,3]
[326704122,1715268650443,-466.94535979,0.00034,4]
[326704125,1715268650453,-154.69061876,0.0004834,10]
[326704128,1715268650463,-500.0,0.00057999,120]
[326704131,1715268650473,-500.0,0.00057999,120]
[326704134,1715268650483,-500.0,0.00057999,120]
[326704137,1715268650493,-1702.22414739,0.0008124,120]
[326704139,1715268650505,-155.63834254,0.00081991,2]
[326704142,1715268650516,-5000.0,0.00082,50]
[326704143,1715268650525,-151.0,0.00082,120]
[326704144,1715268650535,-7080.35,0.00082081,3]
[326704145,1715268650544,-12946.47651815,0.00082091,51]
[326704146,1715268650554,-18786.29838293,0.00082091,2]
[326704147,1715268650563,-55555.0,0.00082091,120]
[326704148,1715268650572,-2000.0,0.00082091,120]
[326704149,1715268650583,-195.71802091,0.00082091,2]
[326704150,1715268650592,-500.0,0.00082099,120]
[326704151,1715268650602,-250.0,0.00082099,120]
[326704152,1715268650611,-500.0,0.0008219,120]
[326704153,1715268650621,-500.0,0.0008219,120]
[326704154,1715268650630,-500.0,0.0008219,120]
[326704155,1715268650641,-500.0,0.0008219,120]
[326704156,1715268650650,-750.0,0.0008219,120]
[326704157,1715268650660,-501.81602394,0.00082191,120]
[326704158,1715268650669,-200.09916125,0.00082191,7]
[326704159,1715268650679,-535.42088513,0.00082191,2]
[326704160,1715268650688,-160.99359671,0.00082191,120]
[326704161,1715268650698,-500.0,0.00082191,120]
[326704162,1715268650708,-500.0,0.00082191,120]
[326704163,1715268650718,-500.0,0.00082191,120]
[326704164,1715268650727,-501.0099036,0.00082191,120]
[326704165,1715268650737,-468.01171367,0.00082191,120]
[326704166,1715268650746,-534.17435807,0.00082191,120]
[326704167,1715268650756,-516.56236971,0.00082191,120]
[326704168,1715268650767,-500.54516472,0.00082191,120]
[326704169,1715268650776,-502.7719889,0.00082191,120]
[326704170,1715268650786,-500.0,0.00082191,120]
[326704171,1715268650796,-502.31108959,0.00082191,120]
[326704172,1715268650806,-523.36686856,0.00082191,120]
[326704173,1715268650817,-500.0,0.00082191,120]
[326704174,1715268650826,-505.42006945,0.00082191,120]
[326704175,1715268650835,-513.1748658,0.00082191,120]
[326704176,1715268650844,-500.71847858,0.00082191,120]
[326704177,1715268650853,-500.60755317,0.00082191,120]
[326704178,1715268650863,-500.0,0.00082191,120]
[326704179,1715268650872,-500.0,0.00082191,120]
[326704180,1715268650881,-500.78083574,0.00082191,120]
[326704181,1715268650890,-500.0,0.00082191,120]
[326704182,1715268650899,-500.35338855,0.00082191,120]
[326704183,1715268650909,-500.75016913,0.00082191,120]
[326704184,1715268650918,-500.0,0.00082191,120]
[326704185,1715268650928,-500.04430032,0.00082191,120]
[326704186,1715268650937,-642.80000063,0.00082191,120]
[326704187,1715268650947,-500.0,0.00082191,120]
[326704188,1715268651034,-500.0,0.00082191,120]
[326704189,1715268651045,-500.0,0.00082191,120]
[326704190,1715268651055,-501.61011808,0.00082191,120]
[326704191,1715268651064,-502.05021096,0.00082191,120]
[326704192,1715268651074,-500.0,0.00082191,120]
[326704193,1715268651083,-500.0,0.00082191,120]
[326704194,1715268651093,-501.61543898,0.00082191,120]
[326704195,1715268651104,-500.0,0.00082191,120]
[326704196,1715268651114,-501.23477728,0.00082191,120]
[326704197,1715268651125,-500.0,0.00082191,120]
[326704198,1715268651136,-500.0,0.00082191,120]
[326704199,1715268651145,-502.40352954,0.00082191,120]
[326704200,1715268651156,-501.36484997,0.00082191,120]
[326704201,1715268651166,-500.60909832,0.00082191,120]
[326704202,1715268651176,-500.0,0.00082191,120]
[326704203,1715268651186,-503.83145301,0.00082191,120]
[326704204,1715268651197,-500.0,0.00082191,120]
[326704205,1715268651206,-500.0,0.00082191,120]
[326704206,1715268651216,-500.0,0.00082191,2]
[326704207,1715268651226,-501.25860851,0.00082191,120]
[326704208,1715268651235,-500.0,0.00082191,120]
[326704209,1715268651245,-500.69416826,0.00082191,120]
[326704210,1715268651255,-191.07465921,0.00082191,120]
[326704211,1715268651267,-500.0,0.00082191,120]
[326704212,1715268651278,-500.0,0.00082191,120]
[326704213,1715268651287,-503.17974826,0.00082191,120]
[326704214,1715268651298,-500.47596256,0.00082191,120]
[326704215,1715268651308,-501.62826137,0.00082191,120]
[326704216,1715268651318,-500.0,0.00082191,120]
[326704217,1715268651328,-500.0,0.00082191,120]
[326704218,1715268651338,-501.2693637,0.00082191,120]
[326704219,1715268651348,-500.0,0.00082191,120]
[326704220,1715268651358,-316.85130133,0.00082191,120]
[326704221,1715268651369,-502.43282765,0.00082191,30]
[326704222,1715268651380,-500.0,0.00082191,120]
[326704223,1715268651390,-500.0,0.00082191,60]
[326704224,1715268651399,-729.33,0.00082191,2]
[326704225,1715268651409,-501.5509799,0.00082191,120]
[326704226,1715268651419,-208.69381287,0.00082191,120]
[326704227,1715268651432,-501.39250376,0.00082191,120]
[326704228,1715268651442,-500.12182621,0.00082191,120]
[326704229,1715268651451,-500.0,0.00082191,120]
[326704230,1715268651461,-500.0,0.00082191,120]
[326704231,1715268651472,-500.0,0.00082191,120]
[326704232,1715268651481,-611.71325171,0.00082191,120]
[326704233,1715268651491,-500.0,0.00082191,120]
[326704234,1715268651501,-501.71740937,0.00082191,120]
[326704235,1715268651514,-500.0,0.00082191,120]
[326704236,1715268651523,-500.0,0.00082191,120]
[326704237,1715268651533,-420.09066173,0.00082191,120]
[326704238,1715268651542,-506.5,0.00082191,120]
[326704239,1715268651551,-500.0,0.00082191,120]
[326704240,1715268651561,-502.1924483,0.00082191,120]
[326704241,1715268651571,-500.0,0.00082191,120]
[326704242,1715268651580,-500.0,0.00082191,120]
[326704243,1715268651590,-300.0,0.00082191,7]
[326704244,1715268651599,-500.0,0.00082191,120]
[326704245,1715268651608,-501.11692857,0.00082191,120]
[326704246,1715268651618,-482.55395317,0.00082191,120]
[326704247,1715268651628,-199.60435526,0.00082191,30]
[326704248,1715268651637,-520.12737249,0.00082191,120]
[326704249,1715268651647,-500.0,0.00082191,120]
[326704250,1715268651656,-500.0,0.00082191,120]
[326704251,1715268651666,-500.0,0.00082191,120]
[326704252,1715268651679,-500.83610091,0.00082191,120]
[326704253,1715268651688,-500.0,0.00082191,120]
[326704254,1715268651697,-151.30797165,0.00082191,120]
[326704255,1715268651707,-500.0,0.00082191,120]
[326704256,1715268651718,-501.25418169,0.00082191,120]
[326704257,1715268651727,-500.0,0.00082191,120]
[326704258,1715268651736,-501.20641374,0.00082191,120]
[326704259,1715268651745,-493.02449912,0.00082191,120]
[326704260,1715268651755,-500.0,0.00082191,120]
[326704261,1715268651767,-473.15179568,0.00082191,120]
[326704262,1715268651777,-500.0,0.00082191,120]
[326704263,1715268651787,-500.0,0.00082191,120]
[326704264,1715268651796,-500.0,0.00082191,120]
[326704265,1715268651806,-503.01102461,0.00082191,120]
[326704266,1715268651815,-196.32818894,0.00082191,120]
[326704267,1715268651825,-500.0,0.00082191,120]
[326704268,1715268651835,-500.92425978,0.00082191,7]
[326704269,1715268651844,-500.0,0.00082191,120]
[326704270,1715268651854,-503.54049393,0.00082191,120]
[326704271,1715268651865,-500.0,0.00082191,120]
[326704272,1715268651874,-500.00959904,0.00082191,120]
[326704273,1715268651884,-223.94705763,0.00082191,120]
[326704274,1715268651893,-261.55953359,0.00082191,120]
[326704275,1715268651902,-506.4226494,0.00082191,120]
[326704276,1715268651912,-500.0,0.00082191,120]
[326704277,1715268651921,-501.38991682,0.00082191,120]
[326704278,1715268651930,-508.34918319,0.00082191,120]
[326704279,1715268651940,-500.0,0.00082191,120]
[326704280,1715268651950,-500.0,0.00082191,120]
[326704281,1715268651961,-500.0,0.00082191,120]
[326704282,1715268651969,-377.22306267,0.00082191,120]
[326704283,1715268651979,-500.90782887,0.00082191,120]
[326704284,1715268651988,-504.96480381,0.00082191,120]
[326704285,1715268651997,-500.0,0.00082191,120]
[326704286,1715268652006,-501.42450127,0.00082191,120]
[326704287,1715268652019,-507.71761086,0.00082191,120]
[326704288,1715268652029,-500.0,0.00082191,120]
[326704289,1715268652038,-500.0,0.00082191,120]
[326704290,1715268652048,-500.0,0.00082191,120]
[326704291,1715268652057,-500.0,0.00082191,120]
[326704292,1715268652066,-500.0,0.00082191,120]
[326704293,1715268652075,-500.0,0.00082191,120]
[326704294,1715268652085,-500.0,0.00082191,120]
[326704295,1715268652096,-500.0,0.00082191,120]
[326704296,1715268652106,-501.9294575,0.00082191,120]
[326704297,1715268652115,-565.73529399,0.00082191,120]
[326704298,1715268652124,-512.2291973,0.00082191,120]
[326704299,1715268652133,-501.83560457,0.00082191,120]
[326704300,1715268652143,-500.0,0.00082191,120]
[326704301,1715268652152,-500.0,0.00082191,120]
[326704302,1715268652161,-500.0,0.00082191,120]
[326704303,1715268652170,-500.0,0.00082191,120]
[326704304,1715268652181,-244.262282,0.00082191,120]
[326704305,1715268652190,-500.0,0.00082191,120]
[326704306,1715268652200,-500.0,0.00082191,120]
[326704307,1715268652209,-244.262282,0.00082191,120]
[326704308,1715268652218,-530.93,0.00082191,120]
[326704309,1715268652228,-151.0,0.00082191,120]
[326704310,1715268652237,-500.30618024,0.00082191,120]
[326704311,1715268652247,-504.97924542,0.00082191,120]
[326704312,1715268652256,-500.0,0.00082191,120]
[326704313,1715268652268,-500.0,0.00082191,120]
[326704314,1715268652277,-500.0,0.00082191,120]
[326704315,1715268652286,-500.0,0.00082191,120]
[326704316,1715268652295,-513.23026243,0.00082191,120]
[326704317,1715268652304,-502.83332748,0.00082191,120]
[326704318,1715268652313,-500.0,0.00082191,120]
[326704319,1715268652323,-500.0,0.00082191,120]
[326704320,1715268652333,-500.0,0.00082191,120]
[326704321,1715268652342,-503.93530246,0.00082191,120]
[326704322,1715268652351,-504.06339248,0.00082191,120]
[326704323,1715268652361,-500.0,0.00082191,120]
[326704324,1715268652370,-501.72908864,0.00082191,120]
[326704325,1715268652380,-500.0,0.00082191,120]
[326704326,1715268652390,-500.0,0.00082191,120]
[326704327,1715268652399,-500.0,0.00082191,120]
[326704328,1715268652409,-501.44086983,0.00082191,120]
[326704329,1715268652420,-500.0,0.00082191,7]
[326704330,1715268652434,-500.0,0.00082191,120]
[326704331,1715268652443,-502.27050747,0.00082191,120]
[326704332,1715268652453,-500.0,0.00082191,120]
[326704333,1715268652464,-500.0,0.00082191,120]
[326704334,1715268652474,-500.0,0.00082191,120]
[326704335,1715268652484,-500.0,0.00082191,120]
[326704336,1715268652493,-500.0,0.00082191,120]
[326704337,1715268652504,-500.0,0.00082191,120]
[326704338,1715268652515,-500.0,0.00082191,120]
[326704339,1715268652525,-286.10268328,0.00082191,120]
[326704340,1715268652534,-501.1454412,0.00082191,30]
[326704341,1715268652543,-151.0,0.00082191,120]
[326704342,1715268652553,-511.00846786,0.00082191,120]
[326704343,1715268652563,-504.0650748,0.00082191,120]
[326704344,1715268652572,-500.0,0.00082191,120]
[326704345,1715268652582,-577.21,0.00082191,120]
[326704346,1715268652591,-500.0,0.00082191,120]
[326704347,1715268652601,-500.0,0.00082191,120]
[326704348,1715268652611,-503.5503214,0.00082191,120]
[326704349,1715268652621,-500.0,0.00082191,120]
[326704350,1715268652631,-500.0,0.00082191,120]
[326704351,1715268652640,-502.38465845,0.00082191,120]
[326704352,1715268652651,-502.12696672,0.00082191,120]
[326704353,1715268652661,-500.0,0.00082191,120]
[326704354,1715268652671,-504.88567489,0.00082191,120]
[326704355,1715268652681,-502.74035924,0.00082191,120]
[326704356,1715268652691,-500.0,0.00082191,120]
[326704357,1715268652700,-500.0,0.00082191,120]
[326704358,1715268652711,-500.0,0.00082191,120]
[326704359,1715268652720,-151.0,0.00082191,120]
[326704360,1715268652730,-151.0,0.00082191,120]
[326704361,1715268652740,-502.91244379,0.00082191,120]
[326704362,1715268652749,-500.0,0.00082191,120]
[326704363,1715268652760,-503.52548132,0.00082191,120]
[326704364,1715268652770,-151.0,0.00082191,120]
[326704365,1715268652779,-151.0,0.00082191,120]
[326704366,1715268652788,-500.0,0.00082191,120]
[326704367,1715268652798,-500.0,0.00082191,120]
[326704368,1715268652807,-500.0,0.00082191,120]
[326704369,1715268652817,-500.0,0.00082191,120]
[326704370,1715268652827,-500.0,0.00082191,120]
[326704371,1715268652836,-500.0,0.00082191,120]
[326704372,1715268652846,-500.0,0.00082191,120]
[326704373,1715268652856,-500.0,0.00082191,120]
[326704374,1715268652866,-504.63829167,0.00082191,120]
[326704375,1715268652875,-500.0,0.00082191,120]
[326704376,1715268652885,-517.97087917,0.00082191,120]
[326704377,1715268652895,-500.0,0.00082191,120]
[326704378,1715268652905,-200.842099,0.00082191,120]
[326704379,1715268652915,-200.842099,0.00082191,120]
[326704380,1715268652924,-200.842099,0.00082191,120]
[326704381,1715268652934,-500.0,0.00082191,120]
[326704382,1715268652943,-501.04895078,0.00082191,120]
[326704383,1715268652953,-151.0,0.00082191,3]
[326704384,1715268652963,-163.018283,0.00082191,3]
[326704385,1715268652972,-200.842099,0.00082191,120]
[326704386,1715268652982,-200.842099,0.00082191,120]
[326704387,1715268652991,-200.842099,0.00082191,120]
[326704388,1715268653001,-501.16911677,0.00082191,120]
[326704389,1715268653013,-500.0,0.00082191,120]
[326704390,1715268653023,-522.16032309,0.00082191,2]
[326704391,1715268653033,-500.0,0.00082191,120]
[326704392,1715268653042,-500.02125294,0.00082191,120]
[326704393,1715268653052,-500.0,0.00082191,120]
[326704394,1715268653061,-500.0,0.00082191,120]
[326704395,1715268653071,-500.0,0.00082191,120]
[326704396,1715268653080,-501.96184412,0.00082191,120]
[326704397,1715268653090,-500.0,0.00082191,120]
[326704398,1715268653099,-500.0,0.00082191,120]
[326704399,1715268653109,-500.0,0.00082191,120]
[326704400,1715268653118,-571.30634386,0.00082191,120]
[326704401,1715268653128,-503.56254291,0.00082191,120]
[326704402,1715268653137,-500.0,0.00082191,120]
[326704403,1715268653148,-500.0,0.00082191,120]
[326704404,1715268653157,-500.0,0.00082191,120]
[326704405,1715268653167,-500.0,0.00082191,120]
[326704406,1715268653176,-516.07805008,0.00082191,120]
[326704407,1715268653186,-500.0,0.00082191,120]
[326704408,1715268653196,-500.0,0.00082191,120]
[326704409,1715268653206,-500.0,0.00082191,120]
[326704410,1715268653216,-500.0,0.00082191,120]
[326704411,1715268653300,-503.78015703,0.00082191,120]
[326704412,1715268653310,-518.25193081,0.00082191,120]
[326704413,1715268653320,-286.752092,0.00082191,120]
[326704414,1715268653330,-286.752092,0.00082191,120]
[326704415,1715268653340,-286.752092,0.00082191,120]
[326704416,1715268653350,-286.752092,0.00082191,120]
[326704417,1715268653360,-286.752092,0.00082191,120]
[326704418,1715268653369,-286.752092,0.00082191,120]
[326704419,1715268653379,-500.0,0.00082191,120]
[326704420,1715268653388,-501.78644051,0.00082191,120]
[326704421,1715268653397,-555.40293189,0.00082191,120]
[326704422,1715268653407,-500.0,0.00082191,120]
[326704423,1715268653416,-506.58218724,0.00082191,120]
[326704424,1715268653431,-500.0,0.00082191,120]
[326704425,1715268653440,-500.0,0.00082191,120]
[326704426,1715268653450,-151.0,0.00082191,120]
[326704427,1715268653460,-151.0,0.00082191,120]
[326704428,1715268653470,-156.054435,0.00082191,120]
[326704429,1715268653480,-503.79719509,0.00082191,120]
[326704430,1715268653490,-500.0,0.00082191,120]
[326704431,1715268653500,-501.41069804,0.00082191,120]
[326704432,1715268653513,-500.0,0.00082191,120]
[326704433,1715268653523,-500.0,0.00082191,120]
[326704434,1715268653533,-500.0,0.00082191,120]
[326704435,1715268653542,-500.0,0.00082191,120]
[326704436,1715268653552,-501.38604032,0.00082191,120]
[326704437,1715268653562,-500.0,0.00082191,120]
[326704438,1715268653571,-500.0,0.00082191,120]
[326704439,1715268653580,-494.16041,0.00082191,120]
[326704440,1715268653589,-494.16041,0.00082191,120]
[326704441,1715268653599,-494.16041,0.00082191,120]
[326704442,1715268653608,-151.0,0.00082191,120]
[326704443,1715268653619,-151.0,0.00082191,120]
[326704444,1715268653629,-151.0,0.00082191,120]
[326704445,1715268653639,-494.16041,0.00082191,120]
[326704446,1715268653649,-494.16041,0.00082191,120]
[326704447,1715268653659,-494.16041,0.00082191,120]
[326704448,1715268653669,-501.9357741,0.00082191,120]
[326704449,1715268653679,-503.74688524,0.00082191,120]
[326704450,1715268653689,-151.0,0.00082191,120]
[326704451,1715268653699,-151.0,0.00082191,120]
[326704452,1715268653708,-222.758503,0.00082191,120]
[326704453,1715268653718,-500.0,0.00082191,120]
[326704454,1715268653728,-500.0,0.00082191,120]
[326704455,1715268653737,-500.0,0.00082191,120]
[326704456,1715268653747,-946.702754,0.00082191,120]
[326704457,1715268653756,-946.702754,0.00082191,120]
[326704458,1715268653771,-946.702754,0.00082191,120]
[326704459,1715268653782,-500.0,0.00082191,120]
[326704460,1715268653792,-1373.525396,0.00082191,120]
[326704461,1715268653802,-1373.525396,0.00082191,120]
[326704462,1715268653812,-1373.525396,0.00082191,120]
[326704463,1715268653822,-946.702754,0.00082191,120]
[326704464,1715268653832,-946.702754,0.00082191,120]
[326704465,1715268653842,-946.702754,0.00082191,120]
[326704466,1715268653852,-500.0,0.00082191,120]
[326704467,1715268653861,-2029.94,0.00082191,120]
[326704468,1715268653871,-1373.525396,0.00082191,120]
[326704469,1715268653881,-500.0,0.00082191,120]
[326704470,1715268653891,-1373.525396,0.00082191,120]
[326704471,1715268653901,-1373.525396,0.00082191,120]
[326704472,1715268653911,-506.07784148,0.00082191,120]
[326704473,1715268653921,-542.44611802,0.00082191,120]
[326704474,1715268653931,-500.0,0.00082191,120]
[326704475,1715268653941,-502.05253116,0.00082191,120]
[326704476,1715268653951,-500.0,0.00082191,120]
[326704477,1715268653962,-500.0,0.00082191,120]
[326704478,1715268653971,-500.0,0.00082191,120]
[326704479,1715268653981,-259.9,0.00082191,120]
[326704480,1715268653991,-500.0,0.00082191,120]
[326704481,1715268654000,-515.40408836,0.00082191,120]
[326704482,1715268654011,-500.0,0.00082191,120]
[326704483,1715268654021,-500.0,0.00082191,120]
[326704484,1715268654031,-502.94844169,0.00082191,120]
[326704485,1715268654040,-503.05857807,0.00082191,120]
[326704486,1715268654050,-502.26018037,0.00082191,120]
[326704487,1715268654060,-500.0,0.00082191,120]
[326704488,1715268654070,-500.0,0.00082191,120]
[326704489,1715268654080,-513.33455079,0.00082191,120]
[326704490,1715268654089,-511.67,0.00082191,120]
[326704491,1715268654099,-502.68008065,0.00082191,20]
[326704492,1715268654109,-508.24034559,0.00082191,120]
[326704493,1715268654118,-500.0,0.00082191,120]
[326704494,1715268654128,-500.0,0.00082191,120]
[326704495,1715268654137,-500.0,0.00082191,120]
[326704496,1715268654147,-500.0,0.00082191,120]
[326704497,1715268654157,-500.0,0.00082191,120]
[326704498,1715268654167,-1855.043418,0.00082191,120]
[326704499,1715268654176,-1855.043418,0.00082191,120]
[326704500,1715268654185,-187.65977105,0.00082191,120]
[326704501,1715268654195,-1855.043418,0.00082191,120]
[326704502,1715268654205,-277.31677211,0.00082191,120]
[326704503,1715268654214,-151.0,0.00082191,120]
[326704504,1715268654224,-151.0,0.00082191,120]
[326704505,1715268654233,-1855.043418,0.00082191,120]
[326704506,1715268654242,-509.10464751,0.00082191,120]
[326704507,1715268654251,-502.33623934,0.00082191,120]
[326704508,1715268654262,-151.0,0.00082191,120]
[326704509,1715268654271,-1855.043418,0.00082191,120]
[326704510,1715268654281,-1855.043418,0.00082191,120]
[326704511,1715268654290,-500.0,0.00082191,120]
[326704512,1715268654299,-1260.79,0.00082191,120]
[326704513,1715268654309,-151.0,0.00082191,120]
[326704514,1715268654318,-151.0,0.00082191,120]
[326704515,1715268654328,-151.0,0.00082191,120]
[326704516,1715268654338,-502.62344534,0.00082191,120]
[326704517,1715268654349,-501.01198937,0.00082191,120]
[326704518,1715268654359,-500.0,0.00082191,120]
[326704519,1715268654368,-501.15434096,0.00082191,120]
[326704520,1715268654378,-517.03035102,0.00082191,120]
[326704521,1715268654388,-500.80740545,0.00082191,120]
[326704522,1715268654397,-500.0,0.00082191,120]
[326704523,1715268654407,-500.0,0.00082191,120]
[326704524,1715268654417,-500.0,0.00082191,120]
[326704525,1715268654431,-501.5034011,0.00082191,120]
[326704526,1715268654440,-500.0,0.00082191,120]
[326704527,1715268654450,-500.0,0.00082191,120]
[326704528,1715268654459,-151.0,0.00082191,120]
[326704529,1715268654470,-500.0,0.00082191,120]
[326704530,1715268654479,-151.0,0.00082191,120]
[326704531,1715268654489,-151.0,0.00082191,120]
[326704532,1715268654498,-151.0,0.00082191,120]
[326704533,1715268654510,-151.0,0.00082191,120]
[326704534,1715268654519,-579.06,0.00082191,120]
[326704535,1715268654528,-151.0,0.00082191,120]
[326704536,1715268654537,-500.0,0.00082191,120]
[326704537,1715268654547,-500.0,0.00082191,120]
[326704538,1715268654556,-151.0,0.00082191,120]
[326704539,1715268654566,-151.0,0.00082191,120]
[326704540,1715268654575,-500.0,0.00082191,120]
[326704541,1715268654584,-151.0,0.00082191,120]
[326704542,1715268654593,-500.0,0.00082191,120]
[326704543,1715268654603,-151.0,0.00082191,120]
[326704544,1715268654612,-500.0,0.00082191,120]
[326704545,1715268654621,-300.0,0.00082191,2]
[326704546,1715268654631,-500.0,0.00082191,120]
[326704547,1715268654640,-503.39470578,0.00082191,120]
[326704548,1715268654651,-502.44040078,0.00082191,120]
[326704549,1715268654661,-500.0,0.00082191,120]
[326704550,1715268654670,-502.46340895,0.00082191,120]
[326704551,1715268654679,-500.0,0.00082191,120]
[326704552,1715268654689,-500.0,0.00082191,120]
[326704553,1715268654699,-329.56873298,0.00082191,120]
[326704554,1715268654709,-501.77502762,0.00082191,120]
[326704555,1715268654718,-2317.49,0.00082191,120]
[326704556,1715268654728,-500.0,0.00082191,120]
[326704557,1715268654737,-500.0,0.00082191,120]
[326704558,1715268654747,-503.00366195,0.00082191,120]
[326704559,1715268654756,-500.0,0.00082191,120]
[326704560,1715268654769,-500.0,0.00082191,120]
[326704561,1715268654779,-500.0,0.00082191,120]
[326704562,1715268654788,-500.0,0.00082191,7]
[326704563,1715268654798,-500.0,0.00082191,120]
[326704564,1715268654807,-500.0,0.00082191,120]
[326704565,1715268654816,-500.0,0.00082191,120]
[326704566,1715268654825,-151.0,0.00082191,120]
[326704567,1715268654835,-268.050069,0.00082191,120]